fUST/lending_fUST_20250724
["ID","MTS","AMOUNT","RATE_DAILY","PERIOD"]
[374481968,1753318244139,-1187.81,0.0002,2]
[374481969,1753318244148,-397.16778392,0.0002,2]
[374481970,1753318244158,-708.09,0.0002,2]
[374481971,1753318244168,-460.0,0.0002,2]
[374481972,1753318244178,-151.0,0.0002,2]
[374481973,1753318244188,-314.64906921,0.0002,2]
[374481974,1753318244198,-460.0,0.0002,2]
[374481975,1753318244208,-460.0,0.0002,2]
[374481976,1753318244217,-460.0,0.0002,2]
[374481977,1753318244227,-151.0,0.0002,2]
[374481978,1753318244237,-460.0,0.0002,2]
[374481979,1753318244247,-460.0,0.0002,2]
[374481980,1753318244256,-460.0,0.0002,2]
[374481981,1753318244266,-460.0,0.0002,2]
[374481982,1753318244275,-460.0,0.0002,2]
[374481983,1753318244285,-460.0,0.0002,2]
[374481984,1753318244295,-460.0,0.0002,2]
[374481985,1753318244304,-460.0,0.0002,2]
[374481986,1753318244314,-460.0,0.0002,2]
[374481987,1753318244324,-996.62,0.0002,2]
[374481988,1753318244333,-460.0,0.0002,2]
[374481989,1753318244343,-460.0,0.0002,2]
[374481990,1753318244353,-1363.24,0.0002,2]
[374481991,1753318244363,-460.0,0.0002,2]
[374481992,1753318244372,-3768.59,0.0002,2]
[374481993,1753318244382,-460.0,0.0002,2]
[374481994,1753318244392,-1123.81,0.0002,2]
[374481995,1753318244401,-460.0,0.0002,2]
[374481996,1753318244410,-460.0,0.0002,2]
[374481997,1753318244420,-460.0,0.0002,2]
[374481998,1753318244429,-460.0,0.0002,2]
[374481999,1753318244439,-460.0,0.0002,2]
[374482000,1753318244448,-460.0,0.0002,2]
[374482001,1753318244458,-460.0,0.0002,2]
[374482002,1753318244467,-460.0,0.0002,2]
[374482003,1753318244477,-460.0,0.0002,2]
[374482004,1753318244486,-460.0,0.0002,2]
[374482005,1753318244496,-151.0,0.0002,2]
[374482006,1753318244506,-460.0,0.0002,2]
[374482007,1753318244515,-460.0,0.0002,2]
[374482008,1753318244525,-460.0,0.0002,2]
[374482009,1753318244535,-460.0,0.0002,2]
[374482010,1753318244545,-460.0,0.0002,2]
[374482011,1753318244554,-1096.02,0.0002,2]
[374482012,1753318244564,-1096.02,0.0002,2]
[374482013,1753318244573,-460.0,0.0002,2]
[374482014,1753318244583,-460.0,0.0002,2]
[374482015,1753318244592,-460.0,0.0002,2]
[374482016,1753318244602,-460.0,0.0002,2]
[374482017,1753318244611,-300.0,0.00020092,2]
[374482018,1753318244620,-150.0,0.00020121,2]
[374482019,1753318244630,-195.165642,0.00020187,2]
[374482020,1753318244639,-1083.33,0.00020272,2]
[374482021,1753318244648,-460.0,0.00020273,2]
[374482022,1753318244658,-460.0,0.00020273,2]
[374482023,1753318244667,-558.73272528,0.00020273,2]
[374482024,1753318244676,-460.0,0.00020273,2]
[374482025,1753318244686,-460.0,0.00020273,2]
[374482026,1753318244695,-555.00201029,0.00020273,2]
[374482027,1753318244705,-460.0,0.00020273,2]
[374482028,1753318244715,-720.93,0.00020273,2]
[374482029,1753318244724,-460.0,0.00020273,2]
[374482030,1753318244733,-460.0,0.00020273,2]
[374482031,1753318244743,-460.0,0.00020273,2]
[374482032,1753318244752,-460.0,0.00020273,2]
[374482033,1753318244762,-460.0,0.00020273,2]
[374482034,1753318244772,-460.0,0.00020273,2]
[374482035,1753318244782,-623.06,0.00020273,2]
[374482036,1753318244791,-577.25,0.00020273,2]
[374482037,1753318244801,-460.0,0.00020273,2]
[374482038,1753318244811,-460.0,0.00020273,2]
[374482039,1753318244820,-181.15,0.00020273,2]
[374482040,1753318244830,-460.0,0.00020273,2]
[374482041,1753318244839,-460.0,0.00020273,2]
[374482042,1753318244849,-460.0,0.00020273,2]
[374482043,1753318244860,-460.0,0.00020273,2]
[374482044,1753318244871,-460.0,0.00020273,2]
[374482045,1753318244880,-460.0,0.00020273,2]
[374482046,1753318244890,-460.0,0.00020273,2]
[374482047,1753318244899,-460.0,0.00020273,2]
[374482048,1753318244909,-464.15,0.00020273,2]
[374482049,1753318244918,-460.0,0.00020273,2]
[374482050,1753318244928,-369.58098645,0.00020273,2]
[374482051,1753318244939,-237.08,0.00020273,2]
[374482052,1753318244948,-460.0,0.00020273,2]
[374482053,1753318244958,-460.0,0.00020273,2]
[374482054,1753318244967,-460.0,0.00020273,2]
[374482055,1753318244977,-460.0,0.00020273,2]
[374482056,1753318244986,-460.0,0.00020273,2]
[374482057,1753318244996,-460.0,0.00020273,2]
[374482058,1753318245005,-460.0,0.00020273,2]
[374482059,1753318245015,-460.0,0.00020273,2]
[374482060,1753318245024,-460.0,0.00020273,2]
[374482061,1753318245035,-460.0,0.00020273,2]
[374482062,1753318245045,-460.0,0.00020273,2]
[374482063,1753318245054,-460.0,0.00020273,2]
[374482064,1753318245063,-460.0,0.00020273,2]
[374482065,1753318245072,-460.0,0.00020273,2]
[374482066,1753318245081,-540.87,0.00020273,2]
[374482067,1753318245091,-460.0,0.00020273,2]
[374482068,1753318245100,-918.75,0.00020273,2]
[374482069,1753318245109,-782.83,0.00020273,2]
[374482070,1753318245118,-1877.66,0.00020273,2]
[374482071,1753318245128,-2735.09,0.00020273,2]
[374482072,1753318245137,-460.0,0.00020273,2]
[374482073,1753318245147,-460.0,0.00020273,2]
[374482074,1753318245156,-496.27,0.00020273,2]
[374482075,1753318245167,-460.0,0.00020273,2]
[374482076,1753318245177,-460.0,0.00020273,2]
[374482077,1753318245188,-460.0,0.00020273,2]
[374482078,1753318245198,-228.43453808,0.00020273,2]
[374482079,1753318245210,-1438.41,0.00020273,2]
[374482080,1753318245219,-1187.81,0.00020273,2]
[374482081,1753318245229,-464.15,0.00020273,2]
[374482082,1753318245238,-708.09,0.00020273,2]
[374482083,1753318245247,-460.0,0.00020273,2]
[374482084,1753318245257,-460.0,0.00020273,2]
[374482085,1753318245266,-460.0,0.00020273,2]
[374482086,1753318245275,-460.0,0.00020273,2]
[374482087,1753318245285,-460.0,0.00020273,2]
[374482088,1753318245295,-460.0,0.00020273,2]
[374482089,1753318245304,-460.0,0.00020273,2]
[374482090,1753318245314,-460.0,0.00020273,2]
[374482091,1753318245323,-460.0,0.00020273,2]
[374482092,1753318245332,-153.57597038,0.00020273,2]
[374482093,1753318245342,-460.0,0.00020273,2]
[374482094,1753318245351,-996.62,0.00020273,2]
[374482095,1753318245360,-460.0,0.00020273,2]
[374482096,1753318245370,-460.0,0.00020273,2]
[374482097,1753318245379,-460.0,0.00020273,2]
[374482098,1753318245388,-1363.24,0.00020273,2]
[374482099,1753318245398,-460.0,0.00020273,2]
[374482100,1753318245407,-3768.59,0.00020273,2]
[374482101,1753318245416,-460.0,0.00020273,2]
[374482102,1753318245425,-1123.81,0.00020273,2]
[374482103,1753318245435,-460.0,0.00020273,2]
[374482104,1753318245444,-460.0,0.00020273,2]
[374482105,1753318245456,-460.0,0.00020273,2]
[374482106,1753318245467,-460.0,0.00020273,2]
[374482107,1753318245476,-210.41142167,0.00020273,2]
[374482108,1753318245486,-460.0,0.00020273,2]
[374482109,1753318245496,-460.0,0.00020273,2]
[374482110,1753318245505,-460.0,0.00020273,2]
[374482111,1753318245515,-460.0,0.00020273,2]
[374482112,1753318245524,-427.49933622,0.00020273,2]
[374482113,1753318245534,-404.2321672,0.00020273,2]
[374482114,1753318245543,-460.0,0.00020273,2]
[374482115,1753318245553,-460.0,0.00020273,2]
[374482116,1753318245562,-460.0,0.00020273,2]
[374482117,1753318245572,-1096.02,0.00020273,2]
[374482118,1753318245581,-1096.02,0.00020273,2]
[374482119,1753318245591,-460.0,0.00020273,2]
[374482120,1753318245600,-175.09387849,0.00020273,2]
[374482121,1753318245610,-460.0,0.00020273,2]
[374482122,1753318245620,-460.0,0.00020273,2]
[374482123,1753318245629,-1048.0,0.00020274,2]
[374482124,1753318245638,-151.5913915,0.00020274,2]
[374482125,1753318245647,-245.0,0.00020274,2]
[374482126,1753318245657,-500.0,0.00020274,2]
[374482127,1753318245666,-151.0,0.00020274,2]
[374482128,1753318245675,-198.0,0.00020274,2]
[374482129,1753318245685,-799.0,0.00020274,2]
[374482130,1753318245694,-151.0,0.00020274,2]
[374482131,1753318245705,-158.39890312,0.00020274,2]
[374482132,1753318245714,-219.34497079,0.00020274,2]
[374482133,1753318245723,-501.02957041,0.00020321,2]
[374482134,1753318245734,-1000.0,0.00020321,2]
[374482135,1753318245743,-522.46748444,0.00020321,2]
[374482136,1753318245983,-477.53251556,0.00020321,2]
[374482137,1753318245993,-1082.41468936,0.00020321,2]
[374482138,1753318246002,-534.06014584,0.00020321,2]
[374482139,1753318246012,-535.65947014,0.0002039,2]
[374482140,1753318246454,-460.0,0.00019178,2]
[374482141,1753318246463,-460.0,0.00019178,2]
[374482142,1753318246472,-460.0,0.00019178,2]
[374482143,1753318246482,-249.71307903,0.00019178,2]
[374482144,1753318246491,-460.0,0.00019178,2]
[374482145,1753318246501,-208.27,0.00019452,2]
[374482146,1753318246511,-460.0,0.00019452,2]
[374482147,1753318246521,-460.0,0.00019452,2]
[374482148,1753318246531,-460.0,0.00019726,2]
[374482149,1753318246540,-542.78,0.00019726,2]
[374482150,1753318246549,-425.66094886,0.0002039,2]
[374482151,1753318246566,-846.32392378,0.00018986,2]
[374482152,1753318246578,-289.54641168,0.00018986,2]
[374482153,1753318496124,190.7218,0.00025335,120]
[374482154,1753318631862,-375.6838573,0.00017968,6]
[374482160,1753319012488,-303.20164102,0.00017445,2]
[374482161,1753319015472,-265.83937996,0.00017445,2]
[374482162,1753319017176,-164.16062004,0.00017445,2]
[374482163,1753319018786,-164.95781901,0.00017445,2]
[374482164,1753319020991,-191.49565317,0.00017445,2]
[374482166,1753319039893,196.194976,0.00013699,2]
[374482168,1753319142051,155.79189862,0.00016544,2]
[374482169,1753319156141,-153.31925929,0.00017345,2]
[374482170,1753319156161,-242.06848977,0.00017384,2]
[374482171,1753319156184,-431.46482963,0.00017445,2]
[374482173,1753319231200,-1321.9206957,0.0001727,2]
[374482174,1753319232087,-621.0792185,0.0001727,2]
[374482175,1753319246100,-642.19740947,0.0001727,2]
[374482177,1753319346136,-2414.80267633,0.0001727,2]
[374482178,1753319346158,-160.0,0.00017444,2]
[374482179,1753319346177,-300.0,0.000175,2]
[374482180,1753319346199,-300.0,0.000175,2]
[374482181,1753319346220,-1200.0,0.000175,2]
[374482182,1753319346246,-363.0,0.000175,2]
[374482183,1753319346269,-500.0,0.00017501,2]
[374482184,1753319346290,-425.87118872,0.00017501,2]
[374482185,1753319346311,-500.0,0.00017501,2]
[374482186,1753319346332,-24900.0,0.00017502,2]
[374482187,1753319346352,-182.484937,0.00017799,2]
[374482188,1753319346373,-228.379709,0.00017897,2]
[374482189,1753319346393,-1433.86148895,0.00017949,2]
[374482190,1753319347088,-450.8,0.00017949,2]
[374482213,1753319432340,-1380.0,0.0001767,2]
[374482215,1753319432350,-392.54090047,0.00017699,2]
[374482217,1753319432359,-699.64119666,0.0001777,2]
[374482220,1753319432372,-330.12181327,0.0001777,2]
[374482222,1753319432381,-180.77818673,0.00017949,2]
[374482224,1753319432393,-56.04284107,0.00017949,2]
[374482226,1753319432408,-1200.0,0.00018172,2]
[374482228,1753319432419,-5961.67425041,0.00018173,2]
[374482230,1753319432430,-517.56,0.00018173,2]
[374482233,1753319432442,-38.47021409,0.00018173,2]
[374482235,1753319432451,-300.0,0.00018332,2]
[374482237,1753319432461,-300.0,0.00018332,2]
[374482239,1753319432471,-300.0,0.00018332,2]
[374482241,1753319432480,-300.0,0.00018332,2]
[374482242,1753319432489,-10.8802824,0.00018333,2]
[374482245,1753319432501,-1989.1197176,0.00018333,2]
[374482247,1753319432510,-392.5409004,0.00018777,2]
[374482249,1753319432519,-259.0677063,0.000189,2]
[374482251,1753319432530,-856.05720919,0.00019078,2]
[374482315,1753319438391,-186.15517183,0.00019078,2]
[374482317,1753319438402,-647.9686933,0.00019162,2]
[374482319,1753319438412,-422.84,0.00019168,3]
[374482321,1753319438422,-211.42,0.00019168,3]
[374482323,1753319438432,-634.3,0.00019168,3]
[374482325,1753319438442,-500.0,0.00019173,2]
[374482327,1753319438452,-500.0,0.00019173,2]
[374482329,1753319438462,-500.0,0.00019173,2]
[374482331,1753319438472,-520.37179257,0.00019173,2]
[374482333,1753319438481,-500.0,0.00019173,2]
[374482336,1753319438492,-500.0,0.00019173,2]
[374482337,1753319438502,-643.4792164,0.00019173,2]
[374482339,1753319438512,-500.0,0.00019173,2]
[374482343,1753319438522,-326.6286965,0.00019173,2]
[374482344,1753319438532,-460.0,0.00019178,2]
[374482346,1753319438542,-460.0,0.00019178,2]
[374482348,1753319438552,-460.0,0.00019178,2]
[374482351,1753319438562,-460.0,0.00019178,2]
[374482352,1753319438572,-460.0,0.00019178,2]
[374482354,1753319438582,-460.0,0.00019178,2]
[374482357,1753319438592,-460.0,0.00019178,2]
[374482358,1753319438602,-460.0,0.00019178,2]
[374482360,1753319438612,-460.0,0.00019178,2]
[374482363,1753319438622,-460.0,0.00019178,2]
[374482365,1753319438632,-460.0,0.00019178,2]
[374482367,1753319438642,-460.0,0.00019178,2]
[374482368,1753319438652,-460.0,0.00019178,2]
[374482371,1753319438662,-462.53471875,0.00019178,2]
[374482372,1753319438672,-460.0,0.00019178,2]
[374482374,1753319438682,-458.55034372,0.00019178,2]
[374482377,1753319438692,-561.21,0.00019178,2]
[374482379,1753319438702,-460.0,0.00019178,2]
[374482381,1753319438713,-460.0,0.00019178,2]
[374482382,1753319438723,-460.0,0.00019178,2]
[374482385,1753319438733,-463.01152851,0.00019178,2]
[374482387,1753319438743,-264.39802173,0.00019178,2]
[374482389,1753319438753,-460.0,0.00019178,2]
[374482391,1753319438763,-502.32230735,0.00019178,2]
[374482393,1753319438773,-460.0,0.00019178,2]
[374482395,1753319438784,-460.44533274,0.00019178,2]
[374482397,1753319438793,-461.64260018,0.00019178,2]
[374482399,1753319438803,-257.15447415,0.00019178,2]
[374482401,1753319438813,-463.58773357,0.00019178,2]
[374482402,1753319438823,-460.0,0.00019178,2]
[374482405,1753319438833,-463.24333493,0.00019178,2]
[374482407,1753319438843,-391.86722705,0.00019178,2]
[374482408,1753319438852,-203.88558554,0.00019178,2]
[374482410,1753319438863,-460.0,0.00019178,2]
[374482413,1753319438877,-1000.0,0.00019178,2]
[374482414,1753319438888,-460.0,0.00019178,2]
[374482416,1753319438898,-460.0,0.00019178,2]
[374482418,1753319438907,-472.46262067,0.00019178,2]
[374482420,1753319438917,-467.85262096,0.00019178,2]
[374482422,1753319438928,-169.39682319,0.00019178,2]
[374482425,1753319438939,-730.68,0.00019178,2]
[374482427,1753319438949,-460.0,0.00019178,2]
[374482428,1753319438960,-460.0,0.00019178,2]
[374482431,1753319438974,-464.78373449,0.00019178,2]
[374482433,1753319438984,-460.0,0.00019178,2]
[374482435,1753319438994,-460.0,0.00019178,2]
[374482437,1753319439005,-462.33271944,0.00019178,2]
[374482439,1753319439014,-460.0,0.00019178,2]
[374482441,1753319439024,-461.42389967,0.00019178,2]
[374482444,1753319439035,-461.39837944,0.00019178,2]
[374482446,1753319439045,-460.0,0.00019178,2]
[374482448,1753319439054,-460.0,0.00019178,2]
[374482450,1753319439064,-460.0,0.00019178,2]
[374482452,1753319439073,-461.87328598,0.00019178,2]
[374482454,1753319439083,-460.0,0.00019178,2]
[374482456,1753319439093,-886.11,0.00019178,2]
[374482458,1753319439103,-502.02249387,0.00019178,2]
[374482460,1753319439112,-460.0,0.00019178,2]
[374482462,1753319439122,-465.00509176,0.00019178,2]
[374482464,1753319439132,-461.38280297,0.00019178,2]
[374482466,1753319439142,-460.0,0.00019178,2]
[374482468,1753319439152,-539.36012686,0.00019178,2]
[374482470,1753319439163,-460.0,0.00019178,2]
[374482472,1753319439172,-663.34,0.00019178,2]
[374482474,1753319439182,-460.0,0.00019178,2]
[374482476,1753319439192,-460.0,0.00019178,2]
[374482478,1753319439202,-460.0,0.00019178,2]
[374482480,1753319439211,-460.0,0.00019178,2]
[374482482,1753319439221,-460.0,0.00019178,2]
[374482484,1753319439231,-460.0,0.00019178,2]
[374482486,1753319439240,-298.37455666,0.00019178,2]
[374482488,1753319439250,-460.0,0.00019178,2]
[374482490,1753319439263,-460.0,0.00019178,2]
[374482492,1753319439273,-460.0,0.00019178,2]
[374482494,1753319439283,-462.56821294,0.00019178,2]
[374482496,1753319439293,-460.0,0.00019178,2]
[374482497,1753319439303,-460.0,0.00019178,2]
[374482499,1753319439313,-460.0,0.00019178,2]
[374482501,1753319439322,-460.0,0.00019178,2]
[374482504,1753319439334,-460.0,0.00019178,2]
[374482506,1753319439343,-460.0,0.00019178,2]
[374482508,1753319439354,-460.0,0.00019178,2]
[374482510,1753319439364,-407.74602508,0.00019178,2]
[374482512,1753319439374,-460.0,0.00019178,2]
[374482514,1753319439383,-461.78887317,0.00019178,2]
[374482516,1753319439393,-460.0,0.00019178,2]
[374482518,1753319439403,-460.0,0.00019178,2]
[374482520,1753319439412,-461.55112516,0.00019178,2]
[374482522,1753319439422,-460.0,0.00019178,2]
[374482524,1753319439432,-460.0,0.00019178,2]
[374482525,1753319439441,-460.0,0.00019178,2]
[374482527,1753319439451,-460.0,0.00019178,2]
[374482530,1753319439461,-460.0,0.00019178,2]
[374482532,1753319439471,-460.0,0.00019178,2]
[374482533,1753319439480,-460.0,0.00019178,2]
[374482535,1753319439490,-460.0,0.00019178,2]
[374482537,1753319439500,-460.0,0.00019178,2]
[374482539,1753319439510,-460.0,0.00019178,2]
[374482541,1753319439520,-530.04,0.00019178,2]
[374482543,1753319439530,-460.0,0.00019178,2]
[374482545,1753319439541,-460.0,0.00019178,2]
[374482547,1753319439550,-460.0,0.00019178,2]
[374482549,1753319439560,-460.0,0.00019178,2]
[374482552,1753319439570,-460.0,0.00019178,2]
[374482554,1753319439580,-460.0,0.00019178,2]
[374482555,1753319439590,-460.0,0.00019178,2]
[374482558,1753319439602,-461.5182839,0.00019178,2]
[374482560,1753319439613,-460.0,0.00019178,2]
[374482562,1753319439623,-975.69,0.00019178,2]
[374482564,1753319439633,-460.0,0.00019178,2]
[374482566,1753319439643,-975.69,0.00019178,2]
[374482568,1753319439653,-975.69,0.00019178,2]
[374482571,1753319439663,-975.69,0.00019178,2]
[374482574,1753319439674,-975.69,0.00019178,2]
[374482576,1753319439683,-975.69,0.00019178,2]
[374482578,1753319439694,-975.69,0.00019178,2]
[374482580,1753319439704,-460.0,0.00019178,2]
[374482582,1753319439713,-460.0,0.00019178,2]
[374482584,1753319439723,-460.0,0.00019178,2]
[374482586,1753319439732,-460.0,0.00019178,2]
[374482588,1753319439742,-463.67885477,0.00019178,2]
[374482590,1753319439752,-460.0,0.00019178,2]
[374482592,1753319439762,-460.0,0.00019178,2]
[374482594,1753319439772,-460.0,0.00019178,2]
[374482596,1753319439783,-460.0,0.00019178,2]
[374482598,1753319439794,-460.0,0.00019178,2]
[374482600,1753319439804,-460.0,0.00019178,2]
[374482602,1753319439814,-460.0,0.00019178,2]
[374482604,1753319439823,-460.0,0.00019178,2]
[374482606,1753319439833,-460.0,0.00019178,2]
[374482608,1753319439844,-460.0,0.00019178,2]
[374482610,1753319439854,-461.68717891,0.00019178,2]
[374482612,1753319439864,-460.0,0.00019178,2]
[374482614,1753319439874,-460.0,0.00019178,2]
[374482616,1753319439883,-460.0,0.00019178,2]
[374482618,1753319439894,-419.10374137,0.00019178,2]
[374482620,1753319439904,-460.0,0.00019178,2]
[374482622,1753319439914,-460.0,0.00019178,2]
[374482624,1753319439924,-460.0,0.00019178,2]
[374482626,1753319439933,-460.0,0.00019178,2]
[374482627,1753319439943,-460.0,0.00019178,2]
[374482629,1753319439954,-466.44030488,0.00019178,2]
[374482631,1753319439964,-460.0,0.00019178,2]
[374482633,1753319439974,-460.0,0.00019178,2]
[374482635,1753319439984,-460.0,0.00019178,2]
[374482637,1753319439994,-460.0,0.00019178,2]
[374482639,1753319440003,-460.0,0.00019178,2]
[374482641,1753319440013,-321.01917265,0.00019178,2]
[374482643,1753319440024,-460.0,0.00019178,2]
[374482645,1753319440035,-460.0,0.00019178,2]
[374482647,1753319440044,-460.0,0.00019178,2]
[374482649,1753319440054,-460.0,0.00019178,2]
[374482651,1753319440064,-323.51957583,0.00019178,2]
[374482653,1753319440073,-460.0,0.00019178,2]
[374482655,1753319440083,-460.0,0.00019178,2]
[374482657,1753319440093,-460.0,0.00019178,2]
[374482659,1753319440104,-290.74670208,0.00019178,2]
[374482661,1753319440113,-460.0,0.00019178,2]
[374482663,1753319440123,-460.0,0.00019178,2]
[374482665,1753319440133,-460.0,0.00019178,2]
[374482667,1753319440142,-460.0,0.00019178,2]
[374482669,1753319440151,-460.0,0.00019178,2]
[374482671,1753319440161,-460.0,0.00019178,2]
[374482673,1753319440171,-460.0,0.00019178,2]
[374482675,1753319440181,-241.9756248,0.00019178,2]
[374482681,1753319440334,-463.25031618,0.00019178,2]
[374482682,1753319440346,-460.0,0.00019178,2]
[374482683,1753319440356,-532.99036941,0.00019178,2]
[374482684,1753319440365,-460.0,0.00019178,2]
[374482685,1753319440375,-460.0,0.00019178,2]
[374482686,1753319440385,-501.13016854,0.00019178,2]
[374482687,1753319440394,-460.0,0.00019178,2]
[374482688,1753319440404,-460.0,0.00019178,2]
[374482689,1753319440413,-460.0,0.00019178,2]
[374482690,1753319440423,-460.0,0.00019178,2]
[374482691,1753319440432,-460.0,0.00019178,2]
[374482692,1753319440442,-460.0,0.00019178,2]
[374482693,1753319440451,-460.0,0.00019178,2]
[374482694,1753319440462,-462.2797578,0.00019178,2]
[374482695,1753319440472,-460.0,0.00019178,2]
[374482696,1753319440481,-460.0,0.00019178,2]
[374482697,1753319440491,-195.88384282,0.00019178,2]
[374482698,1753319440500,-460.0,0.00019178,2]
[374482699,1753319440511,-462.94820263,0.00019178,2]
[374482700,1753319440520,-460.0,0.00019178,2]
[374482701,1753319440531,-464.498961,0.00019178,2]
[374482702,1753319440540,-460.0,0.00019178,2]
[374482703,1753319440550,-460.0,0.00019178,2]
[374482704,1753319440560,-460.0,0.00019178,2]
[374482705,1753319440570,-460.0,0.00019178,2]
[374482706,1753319440579,-460.0,0.00019178,2]
[374482707,1753319440589,-460.0,0.00019178,2]
[374482708,1753319440599,-460.0,0.00019178,2]
[374482709,1753319440609,-460.0,0.00019178,2]
[374482710,1753319440619,-460.0,0.00019178,2]
[374482711,1753319440628,-460.0,0.00019178,2]
[374482712,1753319440638,-460.0,0.00019178,2]
[374482713,1753319440648,-460.0,0.00019178,2]
[374482715,1753319440657,-460.0,0.00019178,2]
[374482716,1753319440667,-460.0,0.00019178,2]
[374482718,1753319440677,-460.0,0.00019178,2]
[374482720,1753319440686,-460.0,0.00019178,2]
[374482722,1753319440696,-460.0,0.00019178,2]
[374482724,1753319440705,-460.0,0.00019178,2]
[374482726,1753319440715,-460.0,0.00019178,2]
[374482728,1753319440724,-460.0,0.00019178,2]
[374482730,1753319440734,-460.0,0.00019178,2]
[374482732,1753319440744,-226.27770332,0.00019178,2]
[374482734,1753319440753,-460.0,0.00019178,2]
[374482736,1753319440763,-500.0,0.00019178,2]
[374482738,1753319440772,-460.0,0.00019178,2]
[374482740,1753319440783,-460.0,0.00019178,2]
[374482742,1753319440793,-460.0,0.00019178,2]
[374482744,1753319440803,-460.0,0.00019178,2]
[374482746,1753319440812,-460.0,0.00019178,2]
[374482748,1753319440822,-460.0,0.00019178,2]
[374482750,1753319440831,-460.0,0.00019178,2]
[374482752,1753319440841,-462.66590513,0.00019178,2]
[374482754,1753319440850,-460.0,0.00019178,2]
[374482756,1753319440860,-460.0,0.00019178,2]
[374482758,1753319440870,-460.0,0.00019178,2]
[374482760,1753319440879,-460.0,0.00019178,2]
[374482762,1753319440889,-1986.41,0.00019178,2]
[374482764,1753319440898,-460.0,0.00019178,2]
[374482766,1753319440908,-460.0,0.00019178,2]
[374482768,1753319440918,-460.0,0.00019178,2]
[374482770,1753319440927,-460.0,0.00019178,2]
[374482772,1753319440937,-460.0,0.00019178,2]
[374482774,1753319440946,-464.49562561,0.00019178,2]
[374482776,1753319440955,-460.0,0.00019178,2]
[374482778,1753319440965,-460.0,0.00019178,2]
[374482780,1753319440975,-460.0,0.00019178,2]
[374482782,1753319440984,-460.0,0.00019178,2]
[374482784,1753319440993,-604.24089728,0.00019178,2]
[374482786,1753319441002,-460.0,0.00019178,2]
[374482788,1753319441012,-515.99,0.00019178,2]
[374482790,1753319441021,-460.0,0.00019178,2]
[374482792,1753319441030,-460.0,0.00019178,2]
[374482794,1753319441040,-460.0,0.00019178,2]
[374482796,1753319441050,-460.0,0.00019178,2]
[374482798,1753319441061,-294.86887043,0.00019178,2]
[374482800,1753319441071,-460.88760266,0.00019178,2]
[374482802,1753319441080,-466.28,0.00019178,2]
[374482804,1753319441089,-460.0,0.00019178,2]
[374482806,1753319441099,-591.79750991,0.00019178,2]
[374482808,1753319441107,-460.0,0.00019178,2]
[374482810,1753319441117,-460.0,0.00019178,2]
[374482812,1753319441127,-460.0,0.00019178,2]
[374482814,1753319441136,-460.0,0.00019178,2]
[374482816,1753319441146,-251.00143846,0.00019178,2]
[374482818,1753319441155,-460.0,0.00019178,2]
[374482820,1753319441164,-460.0,0.00019178,2]
[374482822,1753319441173,-460.0,0.00019178,2]